Workbook

Sheet 試算シート
A1: 試算のベース
A2: 税引前当期純利益（前年度） | B2: 20000000
A3: 役員報酬の金額（前年度） | B3: 8000000 | J3: 法人税の計算
A4: 法人の利益（役員報酬０の場合） | B4: =B2+B3 -> 28000000 | L4: 課税される利益 | M4: =IF(B8="","",IF(B8<0,0,B8)) -> 15434150 | N4: 円
L5: 法人税等の総額 | M5: =N23 -> 4694700 | N5: 円
A6: 役員報酬の金額 | B6: =F13 -> 11000000 | D6: 前提条件 | G6: 社会保険料（メモ | H6: 西宮市
A7: 社会保険料（会社負担分） | B7: =F14 -> 1565850 | D7: ・役員報酬は全員同額 | G7: 健康保険 | H7: 0.1017 | J7: 【詳細】
A8: 法人の利益（役員報酬、社会保険考慮後） | B8: =B4-B6-B7 -> 15434150 | D8: ・社会保険料は料率から計算 | G8: 健康保険＋介護保険 | H8: 0.1199 | J8: 国へ支払 ① | L8: 法人税（年間利益のうち800万円までに対応する部分） | N8: =ROUNDDOWN(MIN(M4,8000000)*0.15,-3) -> 1200000 | P8: 15% ×800万以下の部分
A9: 法人税の額 | B9: =M5 -> 4694700 | D9: ・役員報酬一人あたり2,000万円までに対応（10万円刻み） | G9: 厚生年金 | H9: 0.183 | J9: 国へ支払 ② | L9: 法人税（年間利益のうち800万円を超える金額に対応する部分） | N9: =ROUNDDOWN(IF(M4>8000000,(M4-8000000)*0.232,0),-3) -> 1724000 | P9: 23.2% ×800万超過部分
J10: 国へ支払 ③ | L10: 地方法人税（法人税の総額に対して一定割合でかかる） | N10: =+ROUNDDOWN((N8+N9)*0.103,-2) -> 301100 | P10: 10.3%× (①＋②)
A11: 役員（セルに名前いれると金額入ります | B11: 役員A | F11: 計 | J11: 都道府県へ支払 ④ | L11: 法人事業税（年間利益のうち400万円までに対応する部分） | N11: =ROUNDDOWN(MIN(M4,4000000)*0.035,-2) -> 140000 | P11: 3.5% ×400万以下の部分
A12: 年齢 | B12: 30 | J12: 都道府県へ支払 ⑤ | L12: 法人事業税（年間利益のうち400万円超800万円未満に対応する部分） | N12: =ROUNDDOWN(IF(M4<4000000,0,MIN(M4-4000000,4000000))*0.053,-2) -> 212000 | P12: 5.3% × 400万超800万未満部分
A13: 役員報酬の金額 | B13: 11000000 | C13: =IF(C11="","",$B13) ->  | D13: =IF(D11="","",$B13) ->  | E13: =IF(E11="","",$B13) ->  | F13: =SUM(B13:E13) -> 11000000 | J13: 都道府県へ支払 ⑥ | L13: 法人事業税（年間利益のうち800万円を超える金額に対応する部分） | N13: =ROUNDDOWN(IF(M4>8000000,M4-8000000,0)*0.07,-2) -> 520300 | P13: 7% ×800万超過部分
A14: 社会保険料（従業員負担分） | B14: =IF(AND(B12<65,B12>39),ROUND((B13*$H$8+B13*$H$9)/2,0),ROUND((B13*$H$7+B13*$H$9)/2,0)) -> 1565850 | C14: =IF(AND(C12<65,C12>39),ROUND((C13*$H$8+C13*$H$9)/2,0),ROUND((C13*$H$7+C13*$H$9)/2,0)) -> 0 | D14: 0 | E14: 0 | F14: =SUM(B14:E14) -> 1565850 | J14: 都道府県へ支払 ⑦ | L14: 特別法人事業税（法人税の総額に対して一定割合でかかる） | N14: =ROUNDDOWN((N11+N12+N13)*0.37,-2) -> 322700 | P14: 37% × (④＋⑤＋⑥)
A15: 所得金額 | B15: =B13-B14 -> 9434150 | C15: =IF(C14="","",$B15) ->  | D15: =IF(D14="","",$B15) ->  | E15: =IF(E14="","",$B15) ->  | J15: 都道府県へ支払 ⑧ | L15: 都道府県民税 所得割（法人税の総額に対して一定割合でかかる） | N15: =+ROUNDDOWN((N8+N9)*0.01,-2) -> 29200 | P15: 1% × (①＋②)
A16: 給与所得控除額 | B16: =IF(B13<=1625000, 550000, IF(B13<=1800000, B13*0.4-100000, IF(B13<=3600000, B13*0.3+80000, IF(B13<=6600000, B13*0.2+440000, IF(B13<=8500000, B13*0.1+1100000, 1950000))))) -> 1950000 | C16: =IF(C15="","",$B16) ->  | J16: 都道府県へ支払 ⑨ | L16: 都道府県民税 均等割（会社が存在し活動すれば絶対かかる） | N16: 20000 | P16: 都道府県により金額が異なるので注意！
A17: 課税所得金額（給与分） | B17: =ROUNDDOWN(B15-B16-480000,-3) -> 7004000 | L17: 都道府県民税 均等割（支店などの活動拠点がある場合） | N17: 0 | P17: 〃
J18: 市町村へ支払 ⑩ | L18: 市町村民税 所得割（法人税の総額に対して一定割合でかかる） | N18: =+ROUNDDOWN((N8+N9)*0.06,-2) -> 175400 | P18: 6%× (①＋②)
J19: 市町村へ支払 ⑪ | L19: 市町村民税 均等割（会社が存在し活動すれば絶対かかる） | N19: 50000 | P19: 市町村により金額が異なるので注意！
A20: 課税所得金額 | B20: =B17+B18-B19 -> 7004000 | C20: =C17+C18-C19 -> 0 | D20: =D17+D18-D19 -> 0 | E20: =E17+E18-E19 -> 0 | L20: 市町村民税 均等割（支店などの活動拠点がある場合） | N20: 0 | P20: 〃
A21: 所得税額 | B21: =IF(B20<=1949000,B20*0.05, IF(B20<=3299000,B20*0.1-97500, IF(B20<=6949000,B20*0.2-427500, IF(B20<=8999000,B20*0.23-636000, IF(B20<=17999000,B20*0.33-1536000, IF(B20<=39999000,B20*0.4-2796000,B20*0.45-4796000)))))) -> 974920 | C21: =IF(C20<=1949000,C20*0.05, IF(C20<=3299000,C20*0.1-97500, IF(C20<=6949000,C20*0.2-427500, IF(C20<=8999000,C20*0.23-636000, IF(C20<=17999000,C20*0.33-1536000, IF(C20<=39999000,C20*0.4-2796000,C20*0.45-4796000)))))) -> 0 | D21: 0 | E21: 0
A22: 住民税額（一律10%としています） | B22: =B20*0.1 -> 700400 | C22: =C20*0.1 -> 0 | D22: 0 | E22: 0
L23: 法人税と地方税の総額 | N23: =SUM(N8:N22) -> 4694700 | O23: 円
A24: 個人の所得税、住民税、社会保険料の合計 | B24: =B21+B22+B14 -> 3241170 | C24: =C21+C22+C14 -> 0 | D24: 0 | E24: 0 | F24: 3241170
A27: B9+F23 | B27: =B9+F24 -> 7935870 | C27: ( 法人側の税負担と、役員個人側の税負担の合計額です。原則としてこの額が最小になるように計算されています。）
A29: 0 | B29: 9166000
A30: 100000 | B30: 9150335
A31: 200000 | B31: 9134870
A32: 300000 | B32: 9120605
A33: 400000 | B33: 9105040
A34: 500000 | B34: 9090625
A35: 600000 | B35: 9075160
A36: 700000 | B36: 9060795
A37: 800000 | B37: 9045230
A38: 900000 | B38: 9030915
A39: 1000000 | B39: 9015350
A40: 1100000 | B40: 9000885
A41: 1200000 | B41: 8985520
A42: 1300000 | B42: 8970855
A43: 1400000 | B43: 8955390
A44: 1500000 | B44: 8941125
A45: 1600000 | B45: 8925560
A46: 1700000 | B46: 8906695
A47: 1800000 | B47: 8885080
A48: 1900000 | B48: 8866315
A49: 2000000 | B49: 8846250
A50: 2100000 | B50: 8827385
A51: 2200000 | B51: 8807270
A52: 2300000 | B52: 8788505
A53: 2400000 | B53: 8768540
A54: 2500000 | B54: 8749675
A55: 2600000 | B55: 8729560
A56: 2700000 | B56: 8710695
A57: 2800000 | B57: 8690630
A58: 2900000 | B58: 8672065
A59: 3000000 | B59: 8651850
A60: 3100000 | B60: 8632985
A61: 3200000 | B61: 8613020
A62: 3300000 | B62: 8594155
A63: 3400000 | B63: 8574190
A64: 3500000 | B64: 8555275
A65: 3600000 | B65: 8535310
A66: 3700000 | B66: 8517845
A67: 3800000 | B67: 8499380
A68: 3900000 | B68: 8481965
A69: 4000000 | B69: 8463400
A70: 4100000 | B70: 8446135
A71: 4200000 | B71: 8427570
A72: 4300000 | B72: 8410255
A73: 4400000 | B73: 8392840
A74: 4500000 | B74: 8378775
A75: 4600000 | B75: 8363710
A76: 4700000 | B76: 8349345
A77: 4800000 | B77: 8334180
A78: 4900000 | B78: 8320215
A79: 5000000 | B79: 8304950
A80: 5100000 | B80: 8290885
A81: 5200000 | B81: 8275520
A82: 5300000 | B82: 8261555
A83: 5400000 | B83: 8246290
A84: 5500000 | B84: 8232325
A85: 5600000 | B85: 8216960
A86: 5700000 | B86: 8202895
A87: 5800000 | B87: 8187930
A88: 5900000 | B88: 8173765
A89: 6000000 | B89: 8158400
A90: 6100000 | B90: 8144335
A91: 6200000 | B91: 8129070
A92: 6300000 | B92: 8115305
A93: 6400000 | B93: 8099740
A94: 6500000 | B94: 8091175
A95: 6600000 | B95: 8082610
A96: 6700000 | B96: 8078045
A97: 6800000 | B97: 8072580
A98: 6900000 | B98: 8067815
A99: 7000000 | B99: 8062250
A100: 7100000 | B100: 8057685
A101: 7200000 | B101: 8052120
A102: 7300000 | B102: 8047555
A103: 7400000 | B103: 8041790
A104: 7500000 | B104: 8037525
A105: 7600000 | B105: 8031860
A106: 7700000 | B106: 8026995
A107: 7800000 | B107: 8021630
A108: 7900000 | B108: 8017065
A109: 8000000 | B109: 8011500
A110: 8100000 | B110: 8006735
A111: 8200000 | B111: 8001070
A112: 8300000 | B112: 7996905
A113: 8400000 | B113: 7991140
A114: 8500000 | B114: 7986875
A115: 8600000 | B115: 7984010
A116: 8700000 | B116: 7982645
A117: 8800000 | B117: 7979980
A118: 8900000 | B118: 7978615
A119: 9000000 | B119: 7975650
A120: 9100000 | B120: 7974085
A121: 9200000 | B121: 7971720
A122: 9300000 | B122: 7970255
A123: 9400000 | B123: 7967290
A124: 9500000 | B124: 7965925
A125: 9600000 | B125: 7963260
A126: 9700000 | B126: 7961895
A127: 9800000 | B127: 7959030
A128: 9900000 | B128: 7957565
A129: 10000000 | B129: 7954900
A130: 10100000 | B130: 7953435
A131: 10200000 | B131: 7950970
A132: 10300000 | B132: 7949305
A133: 10400000 | B133: 7946640
A134: 10500000 | B134: 7945175
A135: 10600000 | B135: 7942610
A136: 10700000 | B136: 7940945
A137: 10800000 | B137: 7938280
A138: 10900000 | B138: 7936915
A139: 11000000 | B139: 7935870
A140: 11100000 | B140: 7936555
A141: 11200000 | B141: 7936770
A142: 11300000 | B142: 7938085
A143: 11400000 | B143: 7937900
A144: 11500000 | B144: 7938785
A145: 11600000 | B145: 7938800
A146: 11700000 | B146: 7939915
A147: 11800000 | B147: 7940030
A148: 11900000 | B148: 7941045
A149: 12000000 | B149: 7940630
A150: 12100000 | B150: 7941845
A151: 12200000 | B151: 7941860
A152: 12300000 | B152: 7943175
A153: 12400000 | B153: 7942660
A154: 12500000 | B154: 7943775
A155: 12600000 | B155: 7943990
A156: 12700000 | B156: 7945005
A157: 12800000 | B157: 7944690
A158: 12900000 | B158: 7945805
A159: 13000000 | B159: 7945720
A160: 13100000 | B160: 7946935
A161: 13200000 | B161: 7946620
A162: 13300000 | B162: 7947835
A163: 13400000 | B163: 7953850
A164: 13500000 | B164: 7963665
A165: 13600000 | B165: 7972380
A166: 13700000 | B166: 7981565
A167: 13800000 | B167: 7990280
A168: 13900000 | B168: 7999895
A169: 14000000 | B169: 8008410
A170: 14100000 | B170: 8017995
A171: 14200000 | B171: 8026610
A172: 14300000 | B172: 8036425
A173: 14400000 | B173: 8044840
A174: 14500000 | B174: 8054225
A175: 14600000 | B175: 8062940
A176: 14700000 | B176: 8072655
A177: 14800000 | B177: 8081170
A178: 14900000 | B178: 8090455
A179: 15000000 | B179: 8099070
A180: 15100000 | B180: 8108785
A181: 15200000 | B181: 8117500
A182: 15300000 | B182: 8127215
A183: 15400000 | B183: 8135200
A184: 15500000 | B184: 8145115
A185: 15600000 | B185: 8153730
A186: 15700000 | B186: 8163445
A187: 15800000 | B187: 8171630
A188: 15900000 | B188: 8181245
A189: 16000000 | B189: 8189860
A190: 16100000 | B190: 8199675
A191: 16200000 | B191: 8207860
A192: 16300000 | B192: 8217675
A193: 16400000 | B193: 8226090
A194: 16500000 | B194: 8236005
A195: 16600000 | B195: 8244190
A196: 16700000 | B196: 8253905
A197: 16800000 | B197: 8262420
A198: 16900000 | B198: 8272135
A199: 17000000 | B199: 8280950
A200: 17100000 | B200: 8290235
A201: 17200000 | B201: 8298850
A202: 17300000 | B202: 8308565
A203: 17400000 | B203: 8317080
... 26 more rows
